lending/lending_fUSD_20240723
["ID","MTS","AMOUNT","RATE_DAILY","PERIOD"]
[333024749,1721761841631,-1274.07752691,0.00011105,2]
[333024750,1721761841640,-959.08617395,0.00011105,2]
[333024751,1721761841650,-1073.43313822,0.00011105,2]
[333024752,1721761841660,-484.62726921,0.00011105,2]
[333024753,1721761841669,-531.08782858,0.00011105,2]
[333024754,1721761841679,-649.10789177,0.00011105,2]
[333024755,1721761841688,-190.77682812,0.00011105,2]
[333024756,1721761841698,-531.66473382,0.00011105,2]
[333024757,1721761841707,-265.14078474,0.00011105,2]
[333024758,1721761841716,-379.90987956,0.00011105,2]
[333024759,1721761841726,-211.11466805,0.00011105,2]
[333024760,1721761841735,-200.0,0.00011105,2]
[333024761,1721761841745,-242.96573529,0.00011105,2]
[333024762,1721761841754,-155.0,0.00011105,2]
[333024763,1721761841766,-254.78853267,0.00011105,2]
[333024764,1721761841777,-425.45792363,0.00011105,2]
[333024765,1721761841787,-155.0,0.00011105,2]
[333024766,1721761841797,-463.02896679,0.00011105,2]
[333024767,1721761841806,-155.0,0.00011105,2]
[333024768,1721761841818,-270.25397008,0.00011105,2]
[333024769,1721761841828,-155.0,0.00011105,2]
[333024770,1721761841837,-308.92570117,0.00011105,2]
[333024771,1721761841847,-329.58624283,0.00011105,2]
[333024772,1721761841857,-155.0,0.00011105,2]
[333024773,1721761841867,-155.0,0.00011105,2]
[333024774,1721761841876,-155.0,0.00011105,2]
[333024775,1721761841886,-155.0,0.00011105,2]
[333024776,1721761841895,-5545.94035955,0.00011105,2]
[333024777,1721761841904,-413.52601323,0.00011105,2]
[333024778,1721761841913,-155.99964841,0.00011105,2]
[333024779,1721761841923,-3078.607379,0.00011105,2]
[333024780,1721761841932,-2837.89406693,0.00011105,2]
[333024781,1721761841942,-1137.7534592,0.00011105,2]
[333024782,1721761841951,-298.29388542,0.00011105,2]
[333024783,1721761841961,-10530.80114964,0.00011105,2]
[333024784,1721761841971,-245.96444197,0.00011105,2]
[333024785,1721761841982,-391.12796954,0.00011105,2]
[333024786,1721761841992,-365.20312364,0.00011105,2]
[333024787,1721761842002,-264.39388391,0.00011105,2]
[333024788,1721761842014,-158.08830523,0.00011105,2]
[333024789,1721761842023,-363.74647436,0.00011105,2]
[333024790,1721761842033,-431.97601282,0.00011105,2]
[333024791,1721761842042,-196.89824652,0.00011105,2]
[333024792,1721761842053,-155.0,0.00011105,2]
[333024793,1721761842062,-5396.11785072,0.00011105,2]
[333024794,1721761842072,-205.74689583,0.00011105,2]
[333024795,1721761842082,-280.75671916,0.00011105,2]
[333024796,1721761842092,-413.37996369,0.00011105,2]
[333024797,1721761842105,-527.80162773,0.00011105,2]
[333024798,1721761842114,-3117.1338451,0.00011105,2]
[333024799,1721761842124,-2499.76237859,0.00011105,2]
[333024800,1721761842133,-1295.39324134,0.00011105,2]
[333024801,1721761842144,-2639.00178306,0.00011105,2]
[333024802,1721761842154,-719.14188112,0.00011105,2]
[333024803,1721761842163,-686.21541114,0.00011105,2]
[333024804,1721761842174,-155.0,0.00011105,2]
[333024805,1721761842183,-155.0,0.00011105,2]
[333024806,1721761842193,-276.08762307,0.00011105,2]
[333024807,1721761842202,-5758.53444241,0.00011105,2]
[333024808,1721761842211,-341.0755775,0.00011105,2]
[333024809,1721761842221,-155.79458417,0.00011105,2]
[333024810,1721761842230,-161.31363604,0.00011105,2]
[333024811,1721761842240,-210.38217386,0.00011105,2]
[333024812,1721761842249,-175.27928558,0.00011105,2]
[333024813,1721761842258,-1265.58472584,0.00011105,2]
[333024814,1721761842271,-3405.94813149,0.00011105,2]
[333024815,1721761842280,-164.06736204,0.00011105,2]
[333024816,1721761842289,-972.38998512,0.00011105,2]
[333024817,1721761842299,-22627.83293001,0.00011105,2]
[333024818,1721761842308,-722.57761402,0.00011105,2]
[333024819,1721761842318,-2726.38763385,0.00011105,2]
[333024820,1721761842328,-539.24588103,0.00011105,2]
[333024821,1721761842338,-492.92587255,0.00011105,2]
[333024822,1721761842348,-8219.62934749,0.00011105,2]
[333024823,1721761842357,-449.18714164,0.00011105,2]
[333024824,1721761842366,-3651.41529071,0.00011105,2]
[333024825,1721761842375,-198.75526655,0.00011105,2]
[333024826,1721761842385,-164.02052985,0.00011105,2]
[333024827,1721761842394,-155.50926205,0.00011105,2]
[333024828,1721761842403,-155.0,0.00011105,2]
[333024829,1721761842414,-156.44575478,0.00011105,2]
[333024830,1721761842423,-155.0,0.00011105,2]
[333024831,1721761842432,-181.66216644,0.00011105,2]
[333024832,1721761842441,-155.46381169,0.00011105,2]
[333024833,1721761842450,-295.25664693,0.00011105,2]
[333024834,1721761842459,-169.66844258,0.00011105,2]
[333024835,1721761842468,-342.16720055,0.00011105,2]
[333024836,1721761842478,-2206.59920799,0.00011105,2]
[333024837,1721761842487,-203.61489609,0.00011105,2]
[333024838,1721761842497,-367.42834681,0.00011105,2]
[333024839,1721761842506,-155.14917614,0.00011105,2]
[333024840,1721761842517,-155.16673869,0.00011105,2]
[333024841,1721761842526,-155.21184827,0.00011105,2]
[333024842,1721761842535,-155.0,0.00011105,2]
[333024843,1721761842544,-155.14566215,0.00011105,2]
[333024844,1721761842553,-198.79389244,0.00011105,2]
[333024845,1721761842562,-2143.52168912,0.00011105,2]
[333024846,1721761842571,-200.0506593,0.00011105,2]
[333024847,1721761842580,-155.45879518,0.00011105,2]
[333024848,1721761842589,-155.8263988,0.00011105,2]
[333024849,1721761842599,-202.65394581,0.00011105,2]
[333024850,1721761842607,-155.0,0.00011105,2]
[333024851,1721761842616,-155.0,0.00011105,2]
[333024852,1721761842625,-203.19481004,0.00011105,2]
[333024853,1721761842634,-155.71391416,0.00011105,2]
[333024854,1721761842643,-208.45578214,0.00011105,2]
[333024855,1721761842652,-1500.0,0.00011105,2]
[333024856,1721761842661,-519.51657514,0.00011105,2]
[333024857,1721761842670,-155.78749132,0.00011105,2]
[333024858,1721761842679,-1994.15497256,0.00011105,2]
[333024859,1721761842688,-1403.62377853,0.00011105,2]
[333024860,1721761842696,-2383.46831961,0.00011105,2]
[333024861,1721761842706,-155.1484383,0.00011105,2]
[333024862,1721761842715,-163.60562478,0.00011105,2]
[333024863,1721761842724,-357.01695236,0.00011105,2]
[333024864,1721761842733,-267.02011989,0.00011105,2]
[333024865,1721761842741,-155.12320611,0.00011105,2]
[333024866,1721761842750,-155.11912756,0.00011105,2]
[333024867,1721761842759,-155.17508659,0.00011105,2]
[333024868,1721761842770,-155.95688004,0.00011105,2]
[333024869,1721761842780,-160.63085016,0.00011105,2]
[333024870,1721761842789,-170.01106347,0.00011105,2]
[333024871,1721761842798,-158.87232732,0.00011105,2]
[333024872,1721761842806,-252.20971077,0.00011105,2]
[333024873,1721761842817,-160.55067062,0.00011105,2]
[333024874,1721761842826,-155.0,0.00011105,2]
[333024875,1721761842835,-155.0,0.00011105,2]
[333024876,1721761842845,-218.65328672,0.00011105,2]
[333024877,1721761842854,-155.59468753,0.00011105,2]
[333024878,1721761842864,-236.06369741,0.00011105,2]
[333024879,1721761842873,-203.17152502,0.00011105,2]
[333024880,1721761842882,-155.0,0.00011105,2]
[333024881,1721761842891,-191.70982043,0.00011105,2]
[333024882,1721761842903,-155.0,0.00011105,2]
[333024883,1721761842912,-155.0,0.00011105,2]
[333024884,1721761842922,-202.53930426,0.00011105,2]
[333024885,1721761842931,-155.0,0.00011105,2]
[333024886,1721761842940,-158.49361108,0.00011105,2]
[333024887,1721761842949,-300.66947862,0.00011105,2]
[333024888,1721761842959,-8500.0,0.00011105,2]
[333024889,1721761842968,-349.17746955,0.00011105,2]
[333024890,1721761842977,-156.31012989,0.00011105,2]
[333024891,1721761842986,-179.79855629,0.00011105,2]
[333024892,1721761842995,-175.66701087,0.00011105,2]
[333024893,1721761843005,-247.90500079,0.00011105,2]
[333024894,1721761843015,-750.0,0.00011105,2]
[333024895,1721761843024,-8500.0,0.00011105,2]
[333024896,1721761843033,-947.25112385,0.00011105,2]
[333024897,1721761843043,-750.0,0.00011105,2]
[333024898,1721761843052,-155.50963626,0.00011105,2]
[333024899,1721761843062,-260.17503098,0.00011105,2]
[333024900,1721761843071,-174.70034989,0.00011105,2]
[333024902,1721761843080,-151.0,0.00011105,2]
[333024903,1721761843092,-4703.93015566,0.00011105,2]
[333024904,1721761843103,-155.0,0.00011105,2]
[333024905,1721761843113,-394.700899,0.00011105,2]
[333024906,1721761843123,-336.15450406,0.00011105,2]
[333024907,1721761843132,-394.700899,0.00011105,2]
[333024908,1721761843142,-3066.70512637,0.00011105,2]
[333024909,1721761843152,-2000.0,0.0001111,2]
[333024910,1721761843161,-200.0,0.0001111,2]
[333024911,1721761843172,-152.0,0.00011145,3]
[333024912,1721761843181,-24767.52746557,0.00011186,2]
[333024913,1721761843191,-29487.62152391,0.00011186,2]
[333024914,1721761843199,-210.0,0.0001119,2]
[333024915,1721761843209,-413.70052369,0.000112,2]
[333024916,1721761843218,-759.37749245,0.00011206,2]
[333024917,1721761843228,-2000.0,0.00011221,2]
[333024918,1721761843237,-200.0,0.00011221,2]
[333024919,1721761843247,-150.58497355,0.00011241,2]
[333024920,1721761843256,-155.01311997,0.00011304,2]
[333024921,1721761843267,-2000.0,0.00011333,2]
[333024924,1721761843276,-413.70052369,0.0001135,2]
[333024927,1721761843285,-6127.39616789,0.0001135,2]
[333024929,1721761843294,-263.20647818,0.0001135,2]
[333024931,1721761843303,-153.77388829,0.00011378,2]
[333024932,1721761843312,-210.0,0.000114,2]
[333024933,1721761843322,-1000.0,0.000114,2]
[333024934,1721761843331,-396.47951345,0.00011447,2]
[333024935,1721761843340,-367.90136055,0.00011474,2]
[333024936,1721761843350,-10000.0,0.00011498,2]
[333024937,1721761843359,-299.594184,0.00011498,2]
[333024938,1721761843369,-394.700899,0.00011498,2]
[333024939,1721761843378,-394.700899,0.00011498,2]
[333024940,1721761843387,-462644.07332028,0.000115,2]
[333024941,1721761843403,-3455.39202086,0.000115,2]
[333024942,1721761844079,-150.01,0.00010999,2]
[333024943,1721761844088,-1396.72619482,0.000115,2]
[333024944,1721761844124,-833.64,0.00010932,2]
[333024945,1721761844133,-568.96000001,0.000115,2]
[333024946,1721761844146,-346.9,0.000115,2]
[333024970,1721761846371,-349.00808743,0.000115,2]
[333024971,1721761846683,-620.1702649,0.000115,2]
[333024972,1721761846695,-831.51467711,0.000115,2]
[333024974,1721761846707,-683.97176608,0.000115,2]
[333024975,1721761846718,-547.84176427,0.000115,2]
[333024977,1721761846729,-337.08969517,0.000115,2]
[333024978,1721761846740,-571.13282997,0.000115,2]
[333024980,1721762067165,914.75,8.261e-05,2]
[333024982,1721762552367,197.53,8.219e-05,2]
[333024983,1721762552390,12.18,8.219e-05,2]
[333024984,1721762623283,246.08907189,8.219e-05,2]
[333024985,1721762623304,635.84092811,8.219e-05,2]
[333024991,1721762906175,169.61947462,0.00012,30]
[333025005,1721763031478,-250.0,9.46e-05,2]
[333025006,1721763031489,-168.04738512,9.541e-05,2]
[333025007,1721763031501,-176.21813954,9.579e-05,2]
[333025008,1721763031511,-189.17,9.579e-05,2]
[333025009,1721763031521,-176.21813952,9.58e-05,2]
[333025010,1721763031531,-104.59891816,9.581e-05,2]
[333025011,1721763031543,-90.38108184,9.581e-05,2]
[333025012,1721763031553,-176.21813952,9.581e-05,2]
[333025013,1721763031564,-154.90969967,9.596e-05,2]
[333025014,1721763031574,-364.89493132,9.818e-05,2]
[333025015,1721763031590,-635.10506868,9.818e-05,2]
[333025016,1721763031599,-188.67033941,9.818e-05,2]
[333025017,1721763031609,-300.0,9.909e-05,2]
[333025018,1721763031619,-4881.14654553,9.91e-05,2]
[333025019,1721763031696,-2480.12615262,9.91e-05,2]
[333025020,1721763031708,-387.02289021,9.91e-05,2]
[333025036,1721763037681,-5347.74743268,9.91e-05,2]
[333025037,1721763037693,-6045.54035109,9.91e-05,2]
[333025050,1721763039575,-4758.41662787,9.91e-05,2]
[333025051,1721763039586,-250.0,9.944e-05,2]
[333025052,1721763039595,-833.64,9.973e-05,2]
[333025053,1721763039605,-833.64,9.973e-05,2]
[333025054,1721763039616,-833.64,9.973e-05,2]
[333025055,1721763039626,-494.48,9.973e-05,2]
[333025056,1721763039636,-6365.0,0.0001,2]
[333025057,1721763039645,-4387.22984943,0.0001,2]
[333025058,1721763039750,-1140.97331803,0.0001,2]
[333025059,1721763039761,-833.64,0.0001,2]
[333025060,1721763039770,-9.90468197,0.0001,2]
[333025061,1721763039929,-200.68159115,0.0001,2]
[333025062,1721763039940,-153.78556042,0.00010007,2]
[333025063,1721763039951,-9.79154891,0.00010022,2]
[333025096,1721763042664,-145.11815076,0.00010022,2]
[333025097,1721763042674,-629.60666035,0.00010041,2]
[333025098,1721763042686,-204.03333965,0.00010041,2]
[333025099,1721763042696,-1739.77,0.00010048,2]
[333025100,1721763042706,-5251.56560317,0.000102,3]
[333025104,1721763042963,-6243.43439683,0.000102,3]
[333025105,1721763042974,-154.90969967,0.00010252,2]
[333025106,1721763042984,-694.6559034,0.00010341,2]
[333025107,1721763042996,-138.9840966,0.00010341,2]
[333025108,1721763043006,-833.64,0.00010341,2]
[333025109,1721763043016,-10707.2525034,0.000104,5]
[333025110,1721763043041,-787.7474966,0.000104,5]
[333025111,1721763043051,-881.93,0.00010476,2]
[333025112,1721763043061,-259.94,0.00010478,2]
[333025113,1721763043071,-168.04738512,0.00010615,2]
[333025114,1721763043081,-155.39218713,0.00010633,2]
[333025115,1721763043091,-154.90969967,0.00010687,2]
[333025116,1721763043101,-701.0455,0.000107,2]
[333025117,1721763043111,-177.30022449,0.000109,2]
[333025118,1721763043121,-420.0,0.000109,2]
[333025119,1721763043130,-504.07894462,0.00010958,2]
[333025120,1721763043140,-250.0,0.00010959,2]
[333025121,1721763043149,-500.0,0.00010999,2]
[333025122,1721763043159,-500.0,0.00010999,2]
[333025123,1721763043169,-500.0,0.00010999,2]
[333025124,1721763043178,-500.0,0.00010999,2]
[333025125,1721763043188,-500.0,0.00010999,2]
[333025126,1721763043197,-183.61,0.00010999,2]
[333025127,1721763043207,-500.0,0.00010999,2]
[333025128,1721763043216,-500.0,0.00010999,2]
[333025129,1721763043226,-500.0,0.00010999,2]
[333025130,1721763043236,-500.0,0.00010999,2]
[333025131,1721763043246,-500.0,0.00010999,2]
[333025132,1721763043257,-405.03,0.00010999,2]
[333025133,1721763043267,-500.0,0.00010999,2]
[333025134,1721763043277,-500.0,0.00010999,2]
[333025135,1721763043286,-500.0,0.00010999,2]
[333025136,1721763043296,-500.0,0.00010999,2]
[333025137,1721763043306,-500.0,0.00010999,2]
[333025138,1721763043316,-500.0,0.00010999,2]
[333025139,1721763043325,-180.98998606,0.00010999,2]
[333025140,1721763043335,-387.02289021,0.00010999,2]
[333025141,1721763043345,-502.33908338,0.00010999,2]
[333025142,1721763043355,-500.0,0.00010999,2]
[333025143,1721763043366,-500.0,0.00010999,2]
[333025144,1721763043376,-500.0,0.00010999,2]
[333025145,1721763043387,-500.0,0.00010999,2]
[333025146,1721763043397,-500.0,0.00010999,2]
[333025147,1721763043406,-302.03927896,0.00010999,2]
[333025148,1721763043416,-500.0,0.00010999,2]
[333025149,1721763043426,-500.0,0.00010999,2]
[333025150,1721763043437,-500.0,0.00010999,2]
[333025151,1721763043447,-500.0,0.00010999,2]
[333025152,1721763043457,-254.61,0.00010999,2]
[333025153,1721763043468,-565.42924443,0.00010999,2]
[333025154,1721763043480,-500.0,0.00010999,2]
[333025155,1721763043491,-1012.29,0.00010999,2]
[333025156,1721763043501,-1012.29,0.00010999,2]
[333025157,1721763043514,-1012.29,0.00010999,2]
[333025158,1721763043524,-1012.29,0.00010999,2]
[333025159,1721763043534,-1012.29,0.00010999,2]
[333025160,1721763043543,-1012.29,0.00010999,2]
[333025161,1721763043554,-1012.29,0.00010999,2]
[333025162,1721763043564,-1012.29,0.00010999,2]
[333025163,1721763043576,-1012.29,0.00010999,2]
[333025164,1721763043586,-1012.29,0.00010999,2]
[333025165,1721763043596,-1012.29,0.00010999,2]
[333025166,1721763043606,-1012.29,0.00010999,2]
[333025167,1721763043616,-1012.29,0.00010999,2]
[333025168,1721763043625,-1012.29,0.00010999,2]
[333025169,1721763043635,-1012.29,0.00010999,2]
[333025170,1721763043645,-1012.29,0.00010999,2]
[333025171,1721763043654,-1012.29,0.00010999,2]
[333025172,1721763043665,-1012.29,0.00010999,2]
[333025173,1721763043675,-1012.29,0.00010999,2]
[333025174,1721763043684,-500.0,0.00010999,2]
[333025175,1721763043694,-500.0,0.00010999,2]
[333025176,1721763043703,-500.0,0.00010999,2]
[333025177,1721763043713,-500.0,0.00010999,2]
[333025178,1721763043723,-500.0,0.00010999,2]
[333025179,1721763043733,-500.0,0.00010999,2]
[333025180,1721763043743,-500.0,0.00010999,2]
[333025181,1721763043753,-500.0,0.00010999,2]
[333025182,1721763043765,-500.0,0.00010999,2]
[333025183,1721763043775,-500.0,0.00010999,2]
[333025184,1721763043785,-500.0,0.00010999,2]
[333025185,1721763043794,-500.0,0.00010999,2]
[333025186,1721763043804,-500.0,0.00010999,2]
[333025187,1721763043814,-500.0,0.00010999,2]
[333025188,1721763043824,-500.0,0.00010999,2]
[333025189,1721763043834,-500.0,0.00010999,2]
[333025190,1721763043844,-500.0,0.00011,2]
[333025191,1721763043853,-96600.09974787,0.00011,2]
[333025192,1721763043878,-351.09986958,0.00010999,2]
[333025207,1721763045644,-340.19,0.000109,2]
[333025214,1721763045939,-888.72882812,0.000109,2]
[333025229,1721763256432,843.94,8.219e-05,2]
[333025230,1721763469359,7797.62267189,8.219e-05,2]
[333025231,1721763469382,10000.0,8.219e-05,2]
[333025232,1721763469405,10000.0,8.219e-05,2]
[333025233,1721763469427,2769.56639268,8.219e-05,2]
[333025234,1721764038519,824.93,8.219e-05,2]
[333025291,1721764232213,-1664.160593,9.423e-05,2]
[333025292,1721764232222,-250.0,9.471e-05,2]
[333025293,1721764232231,-1991.16395302,9.517e-05,2]
[333025294,1721764232268,-1493.43313315,9.517e-05,2]
[333025295,1721764232280,-604.71132135,9.517e-05,2]
[333025296,1721764232343,-19810.69159248,9.517e-05,2]
[333025297,1721764232352,-500.0,9.526e-05,2]
[333025298,1721764232362,-800.0,9.722e-05,2]
[333025299,1721764232373,-170.18,9.738e-05,2]
[333025300,1721764232382,-200.0,9.821e-05,2]
[333025301,1721764232392,-500.0,9.884e-05,2]
[333025302,1721764232402,-150.0,9.89e-05,2]
[333025303,1721764232411,-2354.28,9.906e-05,2]
[333025304,1721764232421,-154.90969968,9.919e-05,2]
[333025305,1721764232430,-590.08,9.919e-05,2]
[333025306,1721764232440,-499.99,9.919e-05,2]
[333025307,1721764232449,-1821.71,9.919e-05,2]
[333025308,1721764232459,-3103.29,9.922e-05,2]
[333025309,1721764232469,-189.08,9.928e-05,2]
[333025310,1721764232479,-150.0,9.961e-05,2]
[333025311,1721764232488,-5650.0,9.962e-05,2]
[333025312,1721764232497,-1008.24168052,0.0001,2]
[333025313,1721764232507,-155.0,0.0001,2]
[333025314,1721764232516,-833.64,0.00010055,2]
[333025315,1721764232526,-839.8,0.00010055,2]
[333025316,1721764232537,-833.64,0.00010055,2]
[333025317,1721764232546,-833.64,0.00010055,2]
[333025318,1721764232556,-163.30825188,0.00010127,2]
[333025319,1721764232565,-154.45690702,0.00010189,2]
[333025320,1721764232574,-150.0,0.00010192,2]
[333025321,1721764232584,-165.31,0.00010192,2]
[333025322,1721764232593,-300.0,0.00010192,2]
[333025323,1721764232602,-165.31,0.00010192,2]
[333025324,1721764232611,-150.0,0.00010192,2]
[333025325,1721764232621,-150.77350798,0.00010317,2]
[333025326,1721764232630,-163.96572249,0.00010441,2]
[333025327,1721764232639,-833.64,0.00010441,2]
[333025328,1721764232648,-833.64,0.00010441,2]
[333025329,1721764232658,-833.64,0.00010441,2]
[333025330,1721764232667,-833.64,0.00010441,2]
[333025331,1721764232677,-212.69,0.00010441,2]
[333025332,1721764232686,-824.93,0.00010455,2]
[333025333,1721764232696,-150.0,0.000105,2]
[333025334,1721764232706,-165.31,0.00010578,2]
[333025335,1721764232715,-150.0,0.00010578,2]
[333025336,1721764232725,-165.31,0.00010578,2]
[333025337,1721764232735,-165.08,0.00010578,2]
[333025338,1721764232744,-5862.0,0.00010673,2]
[333025339,1721764232753,-153.77388829,0.00010675,2]
[333025340,1721764232763,-2820.53254,0.0001089,2]
[333025341,1721764232772,-2073.2504,0.000109,2]
[333025342,1721764232784,-1049.01515788,0.000109,2]
[333025343,1721764232795,-348.45084534,0.000109,2]
[333025344,1721764232805,-300.29482751,0.000109,2]
[333025345,1721764232814,-872.3382,0.000109,2]
[333025346,1721764232823,-412.49430383,0.000109,2]
[333025347,1721764232833,-6568.4553,0.000109,2]
[333025348,1721764232843,-492.003,0.000109,2]
[333025349,1721764232852,-338.7468,0.000109,2]
[333025350,1721764232862,-488.8288,0.000109,2]
[333025351,1721764232872,-1000.0,0.000109,2]
[333025352,1721764232886,-1632.82577993,0.000109,2]
[333025353,1721764232895,-220.94,0.00010904,3]
[333025354,1721764232904,-800.0,0.00010937,2]
[333025355,1721764232914,-255.0,0.00010957,2]
[333025356,1721764232925,-250.0,0.00010959,2]
[333025357,1721764232934,-150.77350798,0.00010969,2]
[333025358,1721764232943,-3698.31354804,0.00010997,2]
[333025359,1721764232953,-500.0,0.00010999,2]
[333025360,1721764232963,-405.28,0.00010999,2]
[333025361,1721764232974,-524.84867152,0.00010999,2]
[333025362,1721764232984,-502.16541281,0.00010999,2]
[333025363,1721764232995,-500.0,0.00010999,2]
[333025364,1721764233004,-220.0,0.00010999,2]
[333025365,1721764233014,-500.0,0.00010999,2]
[333025366,1721764233024,-198.37,0.00010999,2]
[333025367,1721764233033,-500.0,0.00010999,2]
[333025368,1721764233046,-430.45406297,0.00010999,2]
[333025369,1721764233057,-500.0,0.00010999,2]
[333025370,1721764233067,-500.0,0.00010999,2]
[333025371,1721764233078,-500.0,0.00010999,2]
[333025372,1721764233088,-219.64,0.00010999,2]
[333025373,1721764233099,-500.0,0.00010999,2]
[333025374,1721764233110,-500.0,0.00010999,2]
[333025375,1721764233120,-270.65316023,0.00010999,2]
[333025376,1721764233130,-644.42,0.00010999,2]
[333025377,1721764233140,-500.0,0.00010999,2]
[333025378,1721764233150,-490.52,0.00010999,2]
[333025379,1721764233160,-500.0,0.00010999,2]
[333025380,1721764233171,-500.0,0.00010999,2]
[333025381,1721764233182,-500.0,0.00010999,2]
[333025382,1721764233191,-357.73,0.00010999,2]
[333025383,1721764233201,-500.0,0.00010999,2]
[333025384,1721764233210,-500.0,0.00010999,2]
[333025385,1721764233220,-500.0,0.00010999,2]
[333025386,1721764233230,-500.0,0.00010999,2]
[333025387,1721764233240,-224.14,0.00010999,2]
[333025388,1721764233250,-500.0,0.00010999,2]
[333025389,1721764233259,-500.0,0.00010999,2]
[333025390,1721764233269,-500.0,0.00010999,2]
[333025391,1721764233279,-500.0,0.00010999,2]
[333025392,1721764233291,-500.0,0.00010999,2]
[333025393,1721764233301,-169.97,0.00010999,2]
[333025394,1721764233311,-500.0,0.00010999,2]
[333025395,1721764233321,-536.55,0.00010999,2]
[333025396,1721764233331,-500.0,0.00010999,2]
[333025397,1721764233341,-500.0,0.00010999,2]
[333025398,1721764233350,-234.04,0.00010999,2]
[333025399,1721764233360,-500.0,0.00010999,2]
[333025400,1721764233369,-500.0,0.00010999,2]
[333025401,1721764233379,-205.79,0.00010999,2]
[333025402,1721764233389,-500.0,0.00010999,2]
[333025403,1721764233399,-500.0,0.00010999,2]
[333025404,1721764233408,-500.0,0.00010999,2]
[333025405,1721764233418,-190.03,0.00010999,2]
[333025406,1721764233427,-500.0,0.00010999,2]
[333025407,1721764233437,-500.0,0.00010999,2]
[333025408,1721764233446,-525.98,0.00010999,2]
[333025409,1721764233456,-347.33,0.00010999,2]
[333025410,1721764233465,-504.43279857,0.00010999,2]
[333025411,1721764233476,-500.0,0.00010999,2]
[333025412,1721764233486,-500.0,0.00010999,2]
[333025413,1721764233495,-150.68,0.00010999,2]
[333025414,1721764233505,-500.0,0.00010999,2]
[333025415,1721764233514,-500.0,0.00010999,2]
[333025416,1721764233524,-606.46,0.00010999,2]
[333025417,1721764233534,-500.0,0.00010999,2]
[333025418,1721764233547,-500.0,0.00010999,2]
[333025419,1721764233557,-500.0,0.00010999,2]
[333025420,1721764233567,-500.0,0.00010999,2]
[333025421,1721764233577,-500.0,0.00010999,2]
[333025422,1721764233587,-500.0,0.00010999,2]
[333025423,1721764233597,-478.95,0.00010999,2]
[333025424,1721764233606,-504.86785646,0.00010999,2]
[333025425,1721764233616,-500.0,0.00010999,2]
[333025426,1721764233626,-500.0,0.00010999,2]
[333025427,1721764233636,-522.79,0.00010999,2]
[333025428,1721764233645,-312.52512004,0.00010999,2]
[333025429,1721764233655,-500.0,0.00010999,2]
[333025430,1721764233665,-371.82,0.00010999,2]
[333025431,1721764233675,-500.0,0.00010999,2]
[333025432,1721764233684,-500.0,0.00010999,2]
[333025433,1721764233694,-500.0,0.00010999,2]
[333025434,1721764233704,-519.59,0.00010999,2]
[333025435,1721764233714,-500.0,0.00010999,2]
[333025436,1721764233724,-500.0,0.00010999,2]
[333025437,1721764233734,-500.0,0.00010999,2]
[333025438,1721764233744,-575.56411274,0.00010999,2]
[333025439,1721764233753,-500.0,0.00010999,2]
[333025440,1721764233763,-500.0,0.00010999,2]
[333025441,1721764233773,-500.0,0.00010999,2]
[333025442,1721764233783,-500.0,0.00010999,2]
[333025443,1721764233795,-500.0,0.00010999,2]
[333025444,1721764233805,-500.0,0.00010999,2]
[333025445,1721764233814,-160.99,0.00010999,2]
[333025446,1721764233824,-500.0,0.00010999,2]
[333025447,1721764233834,-500.0,0.00010999,2]
[333025448,1721764233844,-500.0,0.00010999,2]
[333025449,1721764233853,-500.0,0.00010999,2]
[333025450,1721764233863,-434.26,0.00010999,2]
[333025451,1721764233873,-500.0,0.00010999,2]
[333025452,1721764233884,-500.0,0.00010999,2]